fUSD/lending_fUSD_20250905
["ID","MTS","AMOUNT","RATE_DAILY","PERIOD"]
[383719926,1757098232173,-381.5225184,0.00024498,2]
[383719927,1757098232183,-223.06147722,0.00024498,2]
[383719928,1757098232226,-276.93852278,0.00024498,2]
[383719929,1757098232237,-7612.28710134,0.000245,2]
[383719930,1757098232247,-158.0,0.00024899,2]
[383719931,1757098232256,-200.0,0.000251,7]
[383719932,1757098232266,-160.08,0.00025308,2]
[383719933,1757098232276,-462.1926,0.00025421,2]
[383719934,1757098232285,-300.0,0.00025611,2]
[383719935,1757098232295,-300.0,0.00025611,2]
[383719936,1757098232305,-3010.69135387,0.00025612,2]
[383719937,1757098232314,-249.02,0.000257,2]
[383719938,1757098232324,-170.35,0.0002592,2]
[383719939,1757098232334,-167.34996618,0.00025999,2]
[383719940,1757098232344,-1050.08,0.00026,2]
[383719941,1757098232354,-2018.08446891,0.00026604,2]
[383719942,1757098232364,-517.0,0.00027137,2]
[383719943,1757098232374,-156.28,0.00027397,2]
[383719944,1757098232385,-420.0,0.00027728,2]
[383719945,1757098232394,-500.0,0.00028301,2]
[383719946,1757098232404,-313.5173462,0.00029911,2]
[383719947,1757098232415,-563.18598371,0.00030159,2]
[383719948,1757098232425,-500.0,0.00030239,7]
[383719949,1757098232435,-500.0,0.0003031,7]
[383719950,1757098232444,-471.42560979,0.0003041,120]
[383719951,1757098232460,-28.57439021,0.0003041,120]
[383719952,1757098232470,-500.0,0.00030574,7]
[383719953,1757098232479,-236.83757897,0.00030684,120]
[383719954,1757098232491,-263.16242103,0.00030684,120]
[383719955,1757098232500,-7.38414572,0.00030684,120]
[383719956,1757098232576,-1.60580735,0.000249,2]
[383719957,1757098232589,-705.1914619,0.000249,2]
[383719958,1757098232599,-142.61585428,0.00030684,120]
[383719960,1757098232609,-500.0,0.0003078,7]
[383719961,1757098232618,-150.0,0.00030821,120]
[383719963,1757098232628,-250.0,0.00030873,2]
[383719965,1757098232638,-222.86875607,0.00030884,120]
[383719968,1757098232650,-374.98375467,0.00030884,120]
[383720127,1757098238138,-706.79726916,0.00025929,4]
[383720129,1757098238148,-324.23896935,0.00026959,6]
[383720130,1757098238160,-382.55829981,0.00026959,6]
[383720131,1757098238171,-134.78773873,0.00027988,8]
[383720132,1757098238197,-572.00953043,0.00027988,8]
[383720133,1757098238207,-706.79726916,0.00029017,11]
[383720134,1757098238217,-706.79726916,0.00030046,13]
[383720135,1757098238227,-200.0,0.0003073,2]
[383720136,1757098238238,-1878.36748926,0.00030884,120]
[383720137,1757098238248,-1918.64,0.00030884,2]
[383720138,1757098238257,-200.0,0.00030885,2]
[383720139,1757098238267,-166.64,0.00030926,2]
[383720140,1757098238278,-500.0,0.00030958,120]
[383720141,1757098238288,-399.41,0.00030968,7]
[383720142,1757098238298,-160.0,0.00031011,7]
[383720143,1757098238308,-500.0,0.00031024,2]
[383720144,1757098238317,-1108.354,0.00031029,28]
[383720145,1757098238327,-167.95322069,0.00031029,28]
[383720146,1757098238336,-1635.16,0.00031044,2]
[383720147,1757098238346,-706.79726916,0.00031076,15]
[383720148,1757098238355,-500.83733438,0.00031087,7]
[383720149,1757098238364,-170.35,0.00031103,2]
[383720150,1757098238374,-480.36,0.00031173,2]
[383720151,1757098238383,-500.0,0.00031232,120]
[383720152,1757098238394,-200.0,0.00031352,2]
[383720153,1757098238403,-160.0,0.00031373,2]
[383720155,1757098238413,-160.0,0.00031373,2]
[383720157,1757098238422,-661.45427153,0.0003139,2]
[383720159,1757098238431,-21486.48404952,0.000314,2]
[383720161,1757098238443,-500.0,0.000314,2]
[383720163,1757098238453,-573.8959188,0.000314,2]
[383720165,1757098238464,-400.0,0.000314,2]
[383720168,1757098238487,-2343.38243342,0.000314,2]
[383720186,1757098240401,-34086.54819826,0.000314,2]
[383720187,1757098240411,-500.0,0.000314,5]
[383720188,1757098240423,-500.0,0.000314,5]
[383720189,1757098240433,-500.0,0.000314,5]
[383720190,1757098240443,-500.0,0.000314,5]
[383720191,1757098240452,-500.0,0.000314,5]
[383720192,1757098240462,-564.53796371,0.00031506,120]
[383720193,1757098240471,-500.0,0.00031581,7]
[383720194,1757098240481,-500.0,0.00031661,7]
[383720195,1757098240491,-401.05,0.00031854,30]
[383720196,1757098240500,-3956.47,0.00031919,2]
[383720197,1757098240510,-1000.0,0.00031948,5]
[383720198,1757098240519,-1000.0,0.00031948,5]
[383720199,1757098240528,-538.80920435,0.00031948,5]
[383720200,1757098240538,-500.0,0.00031948,5]
[383720201,1757098240548,-404.33,0.0003195,2]
[383720202,1757098240557,-609.55,0.00031973,2]
[383720203,1757098240567,-500.0,0.00032015,7]
[383720204,1757098240576,-200.0,0.00032043,2]
[383720205,1757098240585,-3937.14,0.00032055,2]
[383720206,1757098240595,-666.0,0.00032081,3]
[383720207,1757098240604,-706.79726916,0.00032105,17]
[383720208,1757098240613,-225.36,0.00032116,2]
[383720210,1757098240622,-150.0,0.00032277,7]
[383720212,1757098240632,-150.0,0.00032277,7]
[383720214,1757098240642,-150.0,0.00032277,7]
[383720216,1757098240651,-150.0,0.00032277,7]
[383720218,1757098240661,-150.0,0.00032277,7]
[383720220,1757098240670,-150.0,0.00032277,7]
[383720222,1757098240680,-150.0,0.00032277,7]
[383720224,1757098240689,-150.0,0.00032277,7]
[383720226,1757098240699,-150.0,0.00032277,7]
[383720228,1757098240708,-150.0,0.00032277,7]
[383720230,1757098240717,-150.0,0.00032277,7]
[383720232,1757098240727,-1500.0,0.00032496,5]
[383720234,1757098240736,-500.0,0.00032566,7]
[383720236,1757098240746,-500.0,0.00032774,7]
[383720238,1757098240755,-500.0,0.00032807,7]
[383720240,1757098240764,-500.0,0.00032848,7]
[383720242,1757098240773,-337.36,0.00032877,2]
[383720244,1757098240782,-276.72067077,0.00032877,2]
[383720246,1757098240792,-350.30026467,0.00032877,7]
[383720248,1757098240801,-2000.0,0.00033044,5]
[383720250,1757098240811,-500.0,0.00033096,7]
[383720252,1757098240820,-500.0,0.0003313,7]
[383720254,1757098240829,-706.79726916,0.00033134,19]
[383720256,1757098240839,-500.0,0.00033143,7]
[383720258,1757098240848,-200.0,0.00033201,2]
[383720260,1757098240858,-500.0,0.00033342,7]
[383720262,1757098240867,-219.98,0.00033425,2]
[383720264,1757098240877,-609.55,0.00033571,2]
[383720266,1757098240890,-2500.0,0.00033592,5]
[383720268,1757098240899,-354.72,0.00033698,7]
[383720270,1757098240909,-1117.18680902,0.000337,2]
[383720272,1757098240920,-500.0,0.00033807,7]
[383720274,1757098240930,-500.0,0.00033828,7]
[383720276,1757098240939,-200.0,0.00034,30]
[383720278,1757098240949,-150.0,0.0003407,7]
[383720280,1757098240959,-150.0,0.0003407,7]
[383720282,1757098240968,-150.0,0.0003407,7]
[383720284,1757098240977,-150.0,0.0003407,7]
[383720286,1757098240987,-150.0,0.0003407,7]
[383720288,1757098240998,-150.0,0.0003407,7]
[383720290,1757098241009,-150.0,0.0003407,7]
[383720293,1757098241019,-150.0,0.0003407,7]
[383720294,1757098241028,-3000.0,0.0003414,5]
[383720297,1757098241038,-500.0,0.00034141,7]
[383720299,1757098241047,-500.0,0.00034162,7]
[383720300,1757098241056,-706.79726916,0.00034164,22]
[383720302,1757098241067,-200.0,0.0003436,2]
[383720305,1757098241076,-354.72,0.00034383,9]
[383720307,1757098241086,-166.65,0.00034398,2]
[383720308,1757098241096,-1444.0,0.00034411,120]
[383720310,1757098241105,-222.0,0.00034471,2]
[383720312,1757098241115,-172.67,0.000345,2]
[383720314,1757098241125,-3375.0,0.00034512,2]
[383720316,1757098241135,-4864.222,0.00034512,2]
[383720319,1757098241147,-4163.0,0.00034512,2]
[383720321,1757098241157,-1444.0,0.00034659,7]
[383720323,1757098241167,-500.0,0.0003467,7]
[383720325,1757098241177,-500.0,0.00034674,7]
[383720327,1757098241187,-3500.0,0.00034688,5]
[383720329,1757098241197,-500.0,0.00034705,7]
[383720331,1757098241207,-34668.1073,0.0003487,2]
[383720333,1757098241216,-1000.0,0.0003487,2]
[383720335,1757098241226,-500.0,0.00034936,7]
[383720337,1757098241237,-1000.0,0.00034945,2]
[383720339,1757098241246,-2500.0,0.00034945,2]
[383720341,1757098241255,-10000.0,0.0003497,2]
[383720343,1757098241264,-354.72,0.00035068,11]
[383720345,1757098241273,-222.0,0.00035115,2]
[383720347,1757098241283,-222.0,0.00035143,7]
[383720349,1757098241292,-609.55,0.0003517,2]
[383720351,1757098241302,-706.79726916,0.00035193,24]
[383720353,1757098241311,-275.0,0.000352,2]
[383720355,1757098241320,-1444.0,0.00035229,2]
[383720357,1757098241329,-2855.02587101,0.00035236,5]
[383720359,1757098241340,-500.0,0.00035259,7]
[383720361,1757098241350,-222.0,0.00035285,7]
[383720363,1757098241359,-500.0,0.00035423,7]
[383720365,1757098241368,-175.44,0.00035442,2]
[383720367,1757098241378,-164.44542574,0.00035506,15]
[383720369,1757098241390,-310.82147441,0.00035506,2]
[383720371,1757098241400,-8700.15070603,0.00035506,2]
[383720373,1757098241410,-5000.0,0.00035516,2]
[383720375,1757098241419,-200.0,0.00035518,2]
[383720377,1757098241429,-2305.19,0.00035586,2]
[383720379,1757098241438,-25955.716795,0.00035596,2]
[383720381,1757098241447,-2305.19,0.00035596,2]
[383720383,1757098241456,-300.0,0.000356,12]
[383720385,1757098241466,-285512.884745,0.00035606,2]
[383720387,1757098241475,-13981.13013213,0.00035606,2]
[383720452,1757098246200,-796.37233644,0.00035606,2]
[383720453,1757098246415,-1250.75817756,0.00035606,2]
[383720461,1757098374494,400.0,0.00030136,120]
[383720462,1757098384693,-273.09,0.000257,2]
[383720463,1757098408498,-253.80567799,0.000249,2]
[383720477,1757098853955,255.94413285,0.00018118,2]
[383720478,1757098893917,150.48108064,0.00019701,20]
[383720479,1757098912433,323.05,0.00016013,2]
[383720480,1757098912651,323.05,0.00016856,2]
[383720481,1757098912883,323.05,0.00017698,2]
[383720482,1757098915101,-205.12466,0.00018541,2]
[383720483,1757098919728,-117.92534,0.00018541,2]
[383720484,1757098919754,-132.44596,0.00019384,2]
[383720485,1757098929738,-190.60404,0.00019384,2]
[383720486,1757098978729,-178.07,0.00020227,2]
[383720487,1757098995914,-76.02,0.00020227,2]
[383720488,1757098995948,-68.96,0.00020227,2]
[383720489,1757099013672,-252.0,0.00020969,2]
[383720490,1757099031512,-200.0,0.00020969,2]
[383720491,1757099039480,400.0,0.00030136,120]
[383720492,1757099048590,-212.59699798,0.00020969,2]
[383720493,1757099066227,-54.77805387,0.00020969,2]
[383720494,1757099066262,-50.44389226,0.00021069,2]
[383720495,1757099105501,-150.0,0.00021069,2]
[383720496,1757099198543,250.0,0.00015,2]
[383720497,1757099199675,300.0,0.00017,2]
[383720498,1757099203024,-159.33672901,0.00019,2]
[383720500,1757099212049,-190.66327099,0.00019,2]
[383720507,1757099309832,-181.50529,0.00021069,2]
[383720508,1757099309870,-14.38331226,0.00021069,2]
[383720509,1757099309914,-108.22279548,0.00021069,2]
[383720510,1757099328212,-200.0,0.00021196,2]
[383720511,1757099328239,-100.0,0.00021196,2]
[383720512,1757099345521,-222.0,0.00021196,2]
[383720513,1757099345593,-28.0,0.00021196,2]
[383720514,1757099362913,-191.59478986,0.00021912,2]
[383720515,1757099362941,-131.45521014,0.00021912,2]
[383720516,1757099380863,-200.93611708,0.00022025,2]
[383720517,1757099380896,-99.06388292,0.00022025,2]
[383720519,1757099431358,-250.0,0.00022025,2]
[383720520,1757099431368,-151.25441,0.00022025,2]
[383720521,1757099431379,-323.05,0.00022755,2]
[383720522,1757099431388,-300.0,0.00023176,2]
[383720523,1757099431398,-300.0,0.00023176,2]
[383720524,1757099431407,-250.0,0.00023176,2]
[383720525,1757099431417,-323.05,0.00023598,2]
[383720526,1757099431427,-151.25441,0.00024025,2]
[383720527,1757099431437,-150.0,0.00024227,2]
[383720528,1757099431445,-300.0,0.00024227,2]
[383720529,1757099431455,-250.0,0.00024227,2]
[383720530,1757099431465,-323.05,0.0002444,2]
[383720531,1757099431475,-300.0,0.00024899,2]
[383720532,1757099431484,-1200.0,0.00024899,2]
[383720533,1757099431494,-500.0,0.000249,2]
[383720534,1757099431503,-500.0,0.000249,2]
[383720535,1757099431513,-500.0,0.000249,2]
[383720536,1757099431522,-1405.7196754,0.000249,2]
[383720537,1757099431531,-323.05,0.00025283,2]
[383720538,1757099431541,-751.5913,0.00025571,2]
[383720539,1757099431550,-2635.68030686,0.000257,2]
[383720540,1757099431562,-256.68,0.000257,2]
[383720541,1757099431589,-118.33104701,0.000257,2]
[383720542,1757099431598,-245.78,0.000257,2]
[383720543,1757099431608,-1405.71967517,0.00025929,4]
[383720544,1757099431617,-151.25441,0.00026025,2]
[383720545,1757099431629,-323.05,0.00026126,2]
[383720546,1757099431639,-1405.71967517,0.00026959,6]
[383720547,1757099431649,-323.05,0.00026969,2]
[383720548,1757099431658,-304.0,0.00026977,2]
[383720549,1757099431669,-173.44169577,0.00027098,2]
[383720550,1757099431678,-233.50330891,0.00027098,2]
[383720551,1757099431687,-1680.0,0.00027099,2]
[383720552,1757099431697,-517.0,0.00027137,2]
[383720553,1757099431707,-323.05,0.00027812,2]
[383720555,1757099431716,-1405.71967517,0.00027988,8]
[383720557,1757099431726,-151.25442,0.00028025,2]
[383720560,1757099431735,-184.19,0.00028044,2]
[383720562,1757099431745,-3602.0,0.000281,5]
[383720563,1757099431755,-323.05,0.00028654,2]
[383720564,1757099431765,-6909.77763085,0.00028906,2]
[383720565,1757099431774,-1405.71967517,0.00029017,11]
[383720566,1757099431785,-2351.0,0.00029493,2]
[383720567,1757099431795,-323.05,0.00029497,2]
[383720568,1757099431804,-151.25441,0.00030025,2]
[383720569,1757099431814,-1405.71967517,0.00030046,13]
[383720570,1757099431824,-323.05,0.0003034,2]
[383720571,1757099431833,-2283.79556333,0.00030526,7]
[383720572,1757099431843,-227.78,0.00030551,120]
[383720573,1757099431852,-343.73913828,0.0003061,2]
[383720574,1757099431864,-156.26086172,0.0003061,2]
[383720575,1757099431873,-333.42,0.00030678,2]
[383720576,1757099431883,-666.0,0.00030683,3]
[383720577,1757099431892,-160.0,0.00030711,7]
[383720578,1757099431902,-250.0,0.00030754,2]
[383720579,1757099431912,-200.0,0.00030768,2]
[383720580,1757099431921,-5298.39766734,0.0003077,2]
[383720581,1757099431941,-1370.65233266,0.0003077,2]
[383720582,1757099431950,-179.38,0.00030818,2]
[383720583,1757099431960,-401.42,0.00030845,2]
[383720584,1757099431970,-1919.66,0.00030892,2]
[383720585,1757099431979,-212.63008182,0.00031022,2]
[383720586,1757099431988,-1405.71967517,0.00031076,15]
[383720587,1757099431998,-323.05,0.00031183,2]
[383720588,1757099432007,-166.77,0.00031548,2]
[383720589,1757099432016,-500.0,0.00031921,7]
[383720590,1757099432026,-2158.64,0.00032003,2]
[383720591,1757099432035,-151.25441,0.00032025,2]
[383720592,1757099432045,-323.05,0.00032025,2]
[383720593,1757099432055,-150.0,0.0003203,7]
[383720594,1757099432065,-150.0,0.0003203,7]
[383720595,1757099432075,-150.0,0.0003203,7]
[383720596,1757099432084,-150.0,0.0003203,7]
[383720597,1757099432094,-150.0,0.0003203,7]
[383720598,1757099432104,-150.0,0.0003203,7]
[383720599,1757099432114,-150.0,0.0003203,7]
[383720600,1757099432124,-150.39949185,0.0003203,7]
[383720601,1757099432134,-150.0,0.0003203,7]
[383720602,1757099432143,-150.0,0.0003203,7]
[383720603,1757099432153,-150.0,0.0003203,7]
[383720604,1757099432162,-150.0,0.0003203,7]
[383720605,1757099432172,-150.0,0.0003203,7]
[383720606,1757099432181,-2146.0,0.00032099,3]
[383720607,1757099432191,-1405.71967517,0.00032105,17]
[383720608,1757099432200,-200.0,0.00032214,2]
[383720609,1757099432210,-150.0,0.0003226,2]
[383720610,1757099432220,-1108.132,0.00032266,32]
[383720611,1757099432229,-1446.37,0.00032266,2]
[383720612,1757099432238,-170.64106412,0.00032266,32]
[383720613,1757099432247,-7770.57536155,0.00032336,30]
[383720614,1757099432257,-1385.2477223,0.00032385,30]
[383720615,1757099432266,-401.42,0.00032387,2]
[383720616,1757099432275,-1152.11,0.00032532,2]
[383720617,1757099432285,-1066.43,0.00032842,2]
[383720618,1757099432294,-367.62,0.00032906,30]
[383720619,1757099432303,-155.0,0.00033,14]
[383720620,1757099432313,-1405.71967517,0.00033134,19]
[383720621,1757099432323,-500.0,0.00033267,7]
[383720622,1757099432333,-500.0,0.00033302,7]
[383720623,1757099432344,-160.0,0.00033374,2]
[383720624,1757099432353,-1864.51275501,0.000334,2]
[383720625,1757099432363,-1588.24,0.00033635,2]
[383720626,1757099432372,-500.0,0.00033795,7]
[383720627,1757099432382,-150.0,0.0003381,7]
[383720628,1757099432392,-500.0,0.00033851,7]
[383720629,1757099432402,-401.42,0.0003393,2]
[383720630,1757099432412,-500.0,0.00033948,7]
[383720631,1757099432422,-700.0,0.00033997,7]
[383720632,1757099432434,-1405.71967517,0.00034164,22]
[383720633,1757099432443,-199.687,0.00034512,2]
[383720634,1757099432452,-150.111,0.00034512,2]
[383720635,1757099432463,-155.0,0.00034521,30]
[383720636,1757099432473,-179.38,0.0003467,2]
[383720637,1757099432483,-500.0,0.00034722,7]
[383720638,1757099432492,-8195.8341,0.0003477,2]
[383720639,1757099432501,-1000.0,0.0003477,2]
[383720640,1757099432511,-470.16,0.00034795,2]
[383720641,1757099432520,-611.37,0.00034795,2]
[383720642,1757099432529,-833.0974189,0.00034971,2]
[383720643,1757099432539,-247.0,0.00035019,7]
[383720644,1757099432549,-600.0,0.00035047,7]
[383720645,1757099432558,-311.88373687,0.00035048,2]
[383720646,1757099432568,-335.5,0.00035068,2]
[383720647,1757099432577,-409.76,0.00035068,2]
[383720648,1757099432586,-301.85,0.00035068,2]
[383720649,1757099432595,-1081.93,0.00035068,2]
[383720650,1757099432604,-357.11,0.00035068,2]
[383720651,1757099432614,-409.76,0.00035068,2]
[383720652,1757099432628,-409.76,0.00035068,2]
[383720653,1757099432637,-1405.71967517,0.00035193,24]
[383720654,1757099432647,-350.33,0.00035198,2]
[383720655,1757099432656,-1250.0,0.0003528,4]
[383720656,1757099432666,-150.34194957,0.00035314,2]
[383720657,1757099432675,-833.0974189,0.00035336,2]
[383720658,1757099432685,-499.8109138,0.00035341,2]
[383720659,1757099432695,-1000.0,0.00035341,2]
[383720660,1757099432705,-2192.9009,0.00035341,2]
[383720661,1757099432715,-1741.02849269,0.00035344,2]
[383720662,1757099432728,-9401.17079926,0.00035344,2]
[383720663,1757099432738,-833.0974189,0.0003539,2]
[383720664,1757099432749,-29144.1702773,0.00035414,2]
[383720665,1757099432758,-322.2037222,0.00035414,2]
[383720666,1757099432768,-22619.6508103,0.00035431,2]
[383720667,1757099432777,-245.0,0.00035435,120]
[383720668,1757099432787,-151.0,0.00035438,14]
[383720669,1757099432797,-2048.5083847,0.00035439,2]
[383720670,1757099432807,-1077.63734681,0.0003544,30]
[383720671,1757099432817,-16889.1041791,0.00035441,2]
[383720672,1757099432827,-141120.8199152,0.00035441,2]
[383720673,1757099432837,-41316.87114829,0.00035441,2]
[383720674,1757099432849,-9571.43030891,0.00035441,2]
[383720675,1757099432859,-951.3646476,0.00035444,2]
[383720676,1757099432869,-1397.30269005,0.00035455,2]
[383720677,1757099432882,-3897.33730995,0.00035455,2]
[383720678,1757099432892,-9999.99,0.00035455,2]
[383720679,1757099432901,-9696.43,0.00035455,2]
[383720680,1757099432911,-2289.69,0.00035455,2]
[383720681,1757099432920,-735.53,0.00035455,2]
[383720682,1757099432930,-499.99,0.00035455,2]
[383720683,1757099432940,-150.99,0.00035455,30]
[383720684,1757099432950,-9999.99,0.00035455,2]
[383720685,1757099432960,-150.99,0.00035455,2]
[383720686,1757099432970,-8211.6,0.00035455,2]
[383720687,1757099432979,-401.42,0.00035472,2]
[383720688,1757099432989,-165.32185938,0.00035488,15]
[383720689,1757099432998,-186.36379049,0.00035492,2]
[383720690,1757099433008,-11309.8254052,0.00035496,2]
[383720691,1757099433017,-1000.0,0.000355,7]
[383720692,1757099433027,-186.318695,0.00035502,2]
[383720693,1757099433037,-1250.0,0.00035506,4]
[383720694,1757099433048,-2529.4122,0.00035506,2]
[383720695,1757099433057,-5000.0,0.00035506,2]
[383720696,1757099433067,-4315.72329928,0.00035515,2]
[383720697,1757099433079,-3194.79329591,0.00035515,2]
[383720698,1757099433103,-3631.68269675,0.00035515,2]
[383720699,1757099433113,-756.04704387,0.00035516,2]
[383720700,1757099433123,-536.63910913,0.00035516,2]
[383720701,1757099433133,-500.0,0.00035538,120]
[383720702,1757099433142,-5900.44259102,0.00035575,2]
[383720703,1757099433154,-855.36664203,0.00035575,2]
[383720878,1757099439533,-315.0,0.000341,2]
[383720880,1757099439542,-309.0,0.0003526,2]
[383720882,1757099439551,-1087.64226965,0.00035575,2]
[383720884,1757099439563,-3342.1443846,0.00035575,2]
[383720906,1757099439771,-22743.8803282,0.00035575,2]
[383720908,1757099439781,-22619.6508103,0.00035586,2]
[383720910,1757099439790,-241.65839454,0.00035589,7]
[383720912,1757099439800,-150.0,0.00035589,7]
[383720914,1757099439809,-150.0,0.00035589,7]
[383720916,1757099439818,-150.0,0.00035589,7]
[383720918,1757099439827,-150.0,0.00035589,7]
[383720920,1757099439836,-150.0,0.00035589,7]
[383720921,1757099439846,-150.0,0.00035589,7]
[383720924,1757099439856,-151.58,0.00035595,2]
[383720925,1757099439865,-231.02296209,0.00035595,2]
[383720927,1757099439874,-11309.8254052,0.00035596,2]
[383720929,1757099439884,-200.0,0.00035599,12]
[383720931,1757099439893,-151.0,0.00035599,12]
[383720933,1757099439903,-600.0,0.00035599,12]
[383720935,1757099439913,-600.0,0.00035599,12]
[383720938,1757099439923,-257.91778498,0.00035599,12]
[383720940,1757099439932,-267.46074303,0.00035599,12]
[383720942,1757099439942,-277.35679052,0.00035599,12]
[383720945,1757099439952,-287.61899177,0.00035599,12]
[383720946,1757099439961,-298.26089446,0.00035599,12]
[383720948,1757099439971,-309.29654756,0.00035599,12]
[383720950,1757099439980,-320.74051982,0.00035599,12]
[383720952,1757099439989,-500.0,0.00035599,12]
[383720955,1757099439999,-332.60791905,0.00035599,12]
[383720956,1757099440008,-344.91441206,0.00035599,12]
[383720958,1757099440017,-500.0,0.00035599,12]
[383720960,1757099440026,-357.6762453,0.00035599,12]
[383720962,1757099440035,-370.91026638,0.00035599,12]
[383720964,1757099440044,-384.63394623,0.00035599,12]
[383720966,1757099440053,-398.86540225,0.00035599,12]
[383720968,1757099440062,-151.0,0.00035599,12]
[383720971,1757099440072,-151.0,0.00035599,12]
[383720972,1757099440081,-151.0,0.00035599,12]
[383720974,1757099440090,-151.0,0.00035599,12]
[383720976,1757099440100,-151.0,0.00035599,12]
[383720979,1757099440110,-500.0,0.00035599,12]
[383720980,1757099440119,-435.94128359,0.00035599,12]
[383720983,1757099440129,-300.0,0.000356,12]
[383720985,1757099440139,-1135.13257985,0.00035605,2]
[383720986,1757099440148,-359232.58590057,0.00035605,2]
[383720988,1757099440158,-323.62,0.00035605,7]
[383720990,1757099440168,-150.0,0.00035605,120]
[383720993,1757099440177,-3324.0,0.00035605,5]
[383720994,1757099440187,-77.28270176,0.00035606,2]
[383721216,1757099442455,-1114.6135,0.00035606,2]
[383721234,1757099442616,-309.41302459,0.00035606,2]
[383721604,1757099865668,155.49,0.00013699,2]
[383721607,1757099948896,198.99327198,0.00015,20]
[383721620,1757100363639,-1031.54670573,0.000199,2]
[383721621,1757100363694,-10167.78454467,0.0002,2]
[383721622,1757100371671,-15858.69055976,0.0002,2]
[383721623,1757100379012,-640.48,0.0002,2]
[383721624,1757100387281,-666.0,0.0002,2]
[383721625,1757100394596,-3149.58,0.0002,2]
[383721626,1757100402296,-200.93611708,0.0002,2]
[383721627,1757100416867,-191.59478986,0.0002,2]
[383721628,1757100431917,-300.0,0.00019999,2]
[383721629,1757100431956,-4213.72651107,0.0002,2]
[383721630,1757100439617,-200.0,0.0002,2]
[383721631,1757100453833,-222.0,0.0002,2]
[383721632,1757100475153,-150.0,0.0002,2]
[383721633,1757100497539,-181.50529,0.0002,2]
[383721634,1757100504658,-252.0,0.0002,2]
[383721635,1757100511907,-200.0,0.0002,2]
[383721637,1757100519089,-212.59699798,0.0002,2]
[383721659,1757100631767,-1200.0,0.00019999,2]
[383721660,1757100631778,-4522.50283577,0.0002,2]
[383721661,1757100631793,-609.13034325,0.0002,2]
[383721662,1757100631803,-763.48675897,0.0002,2]
[383721663,1757100631813,-163.45231624,0.00020849,2]
[383721664,1757100631823,-5168.48034762,0.0002085,2]
[383721665,1757100631834,-7212.95414471,0.0002085,2]
[383721666,1757100631844,-300.0,0.00020909,2]
[383721668,1757100631854,-300.0,0.00021647,2]
[383721670,1757100631863,-292.03745316,0.00021818,2]
[383721672,1757100631873,-1200.0,0.00021881,2]
[383721673,1757100631883,-155.49,0.00021918,2]
[383721674,1757100631892,-5428.08393327,0.00022,4]
[383721675,1757100631902,-300.0,0.00022,2]
[383721676,1757100631912,-250.0,0.00022,2]
[383721677,1757100631922,-674.0,0.00022499,2]
[383721678,1757100631931,-12897.15298145,0.000225,2]
[383721679,1757100631950,-21924.29383343,0.000225,2]
[383721680,1757100631960,-513.18112929,0.0002271,2]
[383721681,1757100631969,-232.43717473,0.00022964,2]
[383721682,1757100631979,-9832.83583645,0.00023285,2]
[383721683,1757100631990,-3377.74980037,0.00023285,2]
[383721684,1757100632018,-847.79662735,0.00023285,2]
[383721685,1757100632028,-4813.72651107,0.00023698,2]
[383721686,1757100632038,-8149.58128148,0.00024,5]
[383721687,1757100632047,-913.7220332,0.000249,2]
[383721688,1757100632057,-1183.31,0.00025075,2]
[383721689,1757100632067,-429.15,0.00025115,2]